Workbook

Sheet Лист1
A1: Школа | C1: МКОУ "Паспартинская СОШ им. А.Г. Калкина" | F1: Утвердил: | G1: должность | H1: Директор
A2: Типовое примерное меню приготавливаемых блюд | G2: фамилия | H2: Байжигитов А.В.
A3: Возрастная категория | E3: 7-11 лет | G3: дата | H3: 12 | I3: 1 | J3: 2026
H4: день | I4: месяц | J4: год
A5: Неделя | B5: День недели | C5: Прием пищи | D5: Раздел меню | E5: Блюда | F5: Вес блюда, г | G5: Белки | H5: Жиры | I5: Углеводы | J5: Калорийность | K5: № рецептуры | L5: Цена
A6: 1 | B6: 1 | C6: Завтрак | D6: гор.блюдо | E6: Каша жидкая молочная рисовая | F6: 200 | G6: 5.3 | H6: 5.4 | I6: 28.7 | J6: 184.5 | K6: 54-25.1к | L6: 20.81
D7: закуска | E7: Салат из белокочанной капусты с морковью | F7: 100 | G7: 1.6 | H7: 10.1 | I7: 9.6 | J7: 135.9 | K7: 54-8з | L7: 8.29
D8: гор.напиток | E8: Какао с молоком | F8: 200 | G8: 4.7 | H8: 3.5 | I8: 12.5 | J8: 100.4 | K8: 54-21гн | L8: 21.49
D9: хлеб | E9: Хлеб пшеничный | F9: 60 | G9: 4.6 | H9: 0.5 | I9: 29.5 | J9: 140.6 | K9: Пром. | L9: 140.6
D13: итого | F13: =SUM(F6:F12) -> 560 | G13: =SUM(G6:G12) -> 16.2 | H13: 19.5 | I13: 80.3 | J13: 561.4 | L13: =SUM(L6:L12) -> 191.19
A14: =A6 -> 1 | B14: =B6 -> 1 | C14: Завтрак 2 | D14: фрукты
D17: итого | F17: =SUM(F14:F16) -> 0 | G17: =SUM(G14:G16) -> 0 | H17: 0 | I17: 0 | J17: 0 | L17: 0
A18: =A6 -> 1 | B18: =B6 -> 1 | C18: Обед | D18: закуска
D19: закуска
D20: 1 блюдо
D21: 3 блюдо
D22: напиток
D23: хлеб бел.
D24: хлеб черн.
D27: итого | F27: =SUM(F18:F26) -> 0 | G27: =SUM(G18:G26) -> 0 | H27: 0 | I27: 0 | J27: 0 | L27: 0
A28: =A6 -> 1 | B28: =B6 -> 1 | C28: Полдник | D28: булочное
D29: напиток
D32: итого | F32: =SUM(F28:F31) -> 0 | G32: =SUM(G28:G31) -> 0 | H32: 0 | I32: 0 | J32: 0 | L32: 0
A33: =A6 -> 1 | B33: =B6 -> 1 | C33: Ужин | D33: гор.блюдо
D34: гарнир
D35: напиток
D36: хлеб
D39: итого | F39: =SUM(F33:F38) -> 0 | G39: =SUM(G33:G38) -> 0 | H39: 0 | I39: 0 | J39: 0 | L39: 0
A40: =A6 -> 1 | B40: =B6 -> 1 | C40: Ужин 2 | D40: кисломол.
D41: булочное
D42: напиток
D43: фрукты
D46: итого | F46: =SUM(F40:F45) -> 0 | G46: =SUM(G40:G45) -> 0 | H46: 0 | I46: 0 | J46: 0 | L46: 0
A47: =A6 -> 1 | B47: =B6 -> 1 | C47: Итого за день: | F47: =F13+F17+F27+F32+F39+F46 -> 560 | G47: =G13+G17+G27+G32+G39+G46 -> 16.2 | H47: 19.5 | I47: 80.3 | J47: 561.4 | L47: =L13+L17+L27+L32+L39+L46 -> 191.19
A48: 1 | B48: 2 | C48: Завтрак | D48: гор.блюдо | E48: Суп картофельный с макаронными изделиями | F48: 200 | G48: 4.8 | H48: 2.2 | I48: 15.5 | J48: 100.9 | K48: 54-24с | L48: 11.33
D49: закуска | E49: Винегрет с растительным маслом | F49: 60 | G49: 0.7 | H49: 5.4 | I49: 4 | J49: 67.1 | K49: 54-16з | L49: 4.99
D50: гор.напиток | E50: Йогурт | F50: 200 | G50: 6.8 | H50: 5 | I50: 11 | J50: 116.2 | K50: Пром. | L50: 12
D51: хлеб | E51: Хлеб пшеничный | F51: 60 | G51: 4.6 | H51: 0.5 | I51: 29.5 | J51: 140.6 | K51: Пром. | L51: 10.5
D52: хлеб черн. | E52: Хлеб ржаной | F52: 60 | G52: 4 | H52: 0 | I52: 20 | J52: 102 | K52: Пром. | L52: 27
D55: итого | F55: =SUM(F48:F54) -> 580 | G55: =SUM(G48:G54) -> 20.9 | H55: =SUM(H48:H54) -> 13.1 | I55: =SUM(I48:I54) -> 80 | J55: =SUM(J48:J54) -> 526.8 | L55: =SUM(L48:L54) -> 65.82
A56: =A48 -> 1 | B56: =B48 -> 2 | C56: Завтрак 2 | D56: фрукты
D59: итого | F59: =SUM(F56:F58) -> 0 | G59: =SUM(G56:G58) -> 0 | H59: =SUM(H56:H58) -> 0 | I59: =SUM(I56:I58) -> 0 | J59: =SUM(J56:J58) -> 0 | L59: 0
A60: =A48 -> 1 | B60: =B48 -> 2 | C60: Обед | D60: 1 блюдо
D61: гарнир
D62: 2 блюдо
D63: напиток
D64: хлеб бел.
D65: закуска
D66: хлеб черн.
D69: итого | F69: =SUM(F60:F68) -> 0 | G69: =SUM(G60:G68) -> 0 | H69: =SUM(H60:H68) -> 0 | I69: =SUM(I60:I68) -> 0 | J69: =SUM(J60:J68) -> 0 | L69: 0
A70: =A48 -> 1 | B70: =B48 -> 2 | C70: Полдник | D70: булочное
D71: напиток
D74: итого | F74: =SUM(F70:F73) -> 0 | G74: =SUM(G70:G73) -> 0 | H74: =SUM(H70:H73) -> 0 | I74: =SUM(I70:I73) -> 0 | J74: =SUM(J70:J73) -> 0 | L74: 0
A75: =A48 -> 1 | B75: =B48 -> 2 | C75: Ужин | D75: гор.блюдо
D76: гарнир
D77: напиток
D78: хлеб
D81: итого | F81: =SUM(F75:F80) -> 0 | G81: =SUM(G75:G80) -> 0 | H81: =SUM(H75:H80) -> 0 | I81: =SUM(I75:I80) -> 0 | J81: =SUM(J75:J80) -> 0 | L81: 0
A82: =A48 -> 1 | B82: =B48 -> 2 | C82: Ужин 2 | D82: кисломол.
D83: булочное
D84: напиток
D85: фрукты
D88: итого | F88: =SUM(F82:F87) -> 0 | G88: =SUM(G82:G87) -> 0 | H88: =SUM(H82:H87) -> 0 | I88: =SUM(I82:I87) -> 0 | J88: =SUM(J82:J87) -> 0 | L88: 0
A89: =A48 -> 1 | B89: =B48 -> 2 | C89: Итого за день: | F89: =F55+F59+F69+F74+F81+F88 -> 580 | G89: =G55+G59+G69+G74+G81+G88 -> 20.9 | H89: =H55+H59+H69+H74+H81+H88 -> 13.1 | I89: =I55+I59+I69+I74+I81+I88 -> 80 | J89: =J55+J59+J69+J74+J81+J88 -> 526.8 | L89: =L55+L59+L69+L74+L81+L88 -> 65.82
A90: 1 | B90: 3 | C90: Завтрак | D90: гор.блюдо | E90: Рыба тушеная в томате с овощами (минтай) | F90: 150 | G90: 13.9 | H90: 7.4 | I90: 6.3 | J90: 147.3 | K90: 54-11р | L90: 52.47
D91: гарнир | E91: Картофельное пюре | F91: 150 | G91: 3.1 | H91: 5.3 | I91: 19.8 | J91: 139.4 | K91: 54-11r | L91: 29.04
D92: гор.напиток | E92: Чай с сахаром | F92: 200 | G92: 0.2 | H92: 0 | I92: 6.4 | J92: 26 | K92: 54-2гн | L92: 1.87
D93: хлеб | E93: Хлеб пшеничный | F93: 60 | G93: 4.6 | H93: 0.5 | I93: 29.5 | J93: 140.6 | K93: Пром. | L93: 10.5
D94: закуска | E94: Яйцо вареное | F94: 60 | G94: 4.8 | H94: 4 | I94: 0.3 | J94: 56.6 | K94: 54-6о | L94: 7.39
D97: итого | F97: =SUM(F90:F96) -> 620 | G97: =SUM(G90:G96) -> 26.6 | H97: =SUM(H90:H96) -> 17.2 | I97: =SUM(I90:I96) -> 62.3 | J97: =SUM(J90:J96) -> 509.9 | L97: 101.27
A98: =A90 -> 1 | B98: =B90 -> 3 | C98: Завтрак 2 | D98: фрукты
D101: итого | F101: =SUM(F98:F100) -> 0 | G101: =SUM(G98:G100) -> 0 | H101: =SUM(H98:H100) -> 0 | I101: =SUM(I98:I100) -> 0 | J101: =SUM(J98:J100) -> 0 | L101: 0
A102: =A90 -> 1 | B102: =B90 -> 3 | C102: Обед | D102: закуска
D103: 1 блюдо
D104: гарнир
D105: 2 блюдо
D106: напиток
D107: хлеб бел.
D108: хлеб черн.
D111: итого | F111: =SUM(F102:F110) -> 0 | G111: =SUM(G102:G110) -> 0 | H111: =SUM(H102:H110) -> 0 | I111: =SUM(I102:I110) -> 0 | J111: =SUM(J102:J110) -> 0 | L111: 0
A112: =A90 -> 1 | B112: =B90 -> 3 | C112: Полдник | D112: булочное
D113: напиток
D116: итого | F116: =SUM(F112:F115) -> 0 | G116: =SUM(G112:G115) -> 0 | H116: =SUM(H112:H115) -> 0 | I116: =SUM(I112:I115) -> 0 | J116: =SUM(J112:J115) -> 0 | L116: 0
A117: =A90 -> 1 | B117: =B90 -> 3 | C117: Ужин | D117: гор.блюдо
D118: гарнир
D119: напиток
D120: хлеб
D123: итого | F123: =SUM(F117:F122) -> 0 | G123: =SUM(G117:G122) -> 0 | H123: =SUM(H117:H122) -> 0 | I123: =SUM(I117:I122) -> 0 | J123: =SUM(J117:J122) -> 0 | L123: 0
A124: =A90 -> 1 | B124: =B90 -> 3 | C124: Ужин 2 | D124: кисломол.
D125: булочное
D126: напиток
D127: фрукты
D130: итого | F130: =SUM(F124:F129) -> 0 | G130: =SUM(G124:G129) -> 0 | H130: =SUM(H124:H129) -> 0 | I130: =SUM(I124:I129) -> 0 | J130: =SUM(J124:J129) -> 0 | L130: 0
A131: =A90 -> 1 | B131: =B90 -> 3 | C131: Итого за день: | F131: =F97+F101+F111+F116+F123+F130 -> 620 | G131: =G97+G101+G111+G116+G123+G130 -> 26.6 | H131: =H97+H101+H111+H116+H123+H130 -> 17.2 | I131: =I97+I101+I111+I116+I123+I130 -> 62.3 | J131: =J97+J101+J111+J116+J123+J130 -> 509.9 | L131: =L97+L101+L111+L116+L123+L130 -> 101.27
A132: 1 | B132: 4 | C132: Завтрак | D132: гор.блюдо | E132: Суп из овощей с фрикадельками мясными | F132: 200 | G132: 8.6 | H132: 6.1 | I132: 13.9 | J132: 144.9 | K132: 54-5с | L132: 35.45
D133: закуска | E133: Сыр твердых сортов в нарезке | F133: 60 | G133: 9.3 | H133: 11.8 | I133: 0 | J133: 143.3 | K133: 54-1з | L133: 43.59
D134: гор.напиток | E134: Компот из смеси сухофруктов | F134: 200 | G134: 0.5 | H134: 0 | I134: 19.8 | J134: 81 | K134: 54-1хн | L134: 2.58
D135: хлеб | E135: Хлеб пшеничный | F135: 60 | G135: 4.6 | H135: 0.5 | I135: 29.5 | J135: 140.6 | K135: Пром. | L135: 10.5
D136: фрукты
D139: итого | F139: =SUM(F132:F138) -> 520 | G139: =SUM(G132:G138) -> 23 | H139: =SUM(H132:H138) -> 18.4 | I139: =SUM(I132:I138) -> 63.2 | J139: =SUM(J132:J138) -> 509.8 | L139: =SUM(L132:L138) -> 92.12
A140: =A132 -> 1 | B140: =B132 -> 4 | C140: Завтрак 2 | D140: фрукты
D143: итого | F143: =SUM(F140:F142) -> 0 | G143: =SUM(G140:G142) -> 0 | H143: =SUM(H140:H142) -> 0 | I143: =SUM(I140:I142) -> 0 | J143: =SUM(J140:J142) -> 0 | L143: 0
A144: =A132 -> 1 | B144: =B132 -> 4 | C144: Обед | D144: 1 блюдо
D145: 2 блюдо
D146: напиток
D147: напиток
D148: фрукты
D149: хлеб бел.
D150: хлеб черн.
D153: итого | F153: =SUM(F144:F152) -> 0 | G153: =SUM(G144:G152) -> 0 | H153: =SUM(H144:H152) -> 0 | I153: =SUM(I144:I152) -> 0 | J153: =SUM(J144:J152) -> 0 | L153: 0
A154: =A132 -> 1 | B154: =B132 -> 4 | C154: Полдник | D154: булочное
D155: напиток
D158: итого | F158: =SUM(F154:F157) -> 0 | G158: =SUM(G154:G157) -> 0 | H158: =SUM(H154:H157) -> 0 | I158: =SUM(I154:I157) -> 0 | J158: =SUM(J154:J157) -> 0 | L158: 0
A159: =A132 -> 1 | B159: =B132 -> 4 | C159: Ужин | D159: гор.блюдо
D160: гарнир
D161: напиток
D162: хлеб
D165: итого | F165: =SUM(F159:F164) -> 0 | G165: =SUM(G159:G164) -> 0 | H165: =SUM(H159:H164) -> 0 | I165: =SUM(I159:I164) -> 0 | J165: =SUM(J159:J164) -> 0 | L165: 0
A166: =A132 -> 1 | B166: =B132 -> 4 | C166: Ужин 2 | D166: кисломол.
D167: булочное
D168: напиток
D169: фрукты
D172: итого | F172: =SUM(F166:F171) -> 0 | G172: =SUM(G166:G171) -> 0 | H172: =SUM(H166:H171) -> 0 | I172: =SUM(I166:I171) -> 0 | J172: =SUM(J166:J171) -> 0 | L172: 0
A173: =A132 -> 1 | B173: =B132 -> 4 | C173: Итого за день: | F173: =F139+F143+F153+F158+F165+F172 -> 520 | G173: =G139+G143+G153+G158+G165+G172 -> 23 | H173: =H139+H143+H153+H158+H165+H172 -> 18.4 | I173: =I139+I143+I153+I158+I165+I172 -> 63.2 | J173: =J139+J143+J153+J158+J165+J172 -> 509.8 | L173: =L139+L143+L153+L158+L165+L172 -> 92.12
A174: 1 | B174: 5 | C174: Завтрак | D174: гор.блюдо | E174: Каша жидкая молочная овсяная | F174: 200 | G174: 6.8 | H174: 7.4 | I174: 24.6 | J174: 192.7 | K174: 54-22к | L174: 18
D176: гор.напиток | E176: Чай с молоком без сахара | F176: 200 | G176: 2.3 | H176: 1.1 | I176: 2.4 | J176: 25.4 | K176: ДП-18н | L176: 5
D177: хлеб | E177: Хлеб пшеничный | F177: 60 | G177: 4.6 | H177: 0.5 | I177: 30.2 | J177: 140.6 | K177: Пром. | L177: 10
D178: фрукты | E178: Груша | F178: 100 | G178: 1 | H178: 0.8 | I178: 25.8 | J178: 113.8 | K178: Пром. | L178: 43
D181: итого | F181: =SUM(F174:F180) -> 560 | G181: =SUM(G174:G180) -> 14.7 | H181: =SUM(H174:H180) -> 9.8 | I181: =SUM(I174:I180) -> 83 | J181: =SUM(J174:J180) -> 472.5 | L181: 76
A182: =A174 -> 1 | B182: =B174 -> 5 | C182: Завтрак 2 | D182: фрукты
D185: итого | F185: =SUM(F182:F184) -> 0 | G185: =SUM(G182:G184) -> 0 | H185: =SUM(H182:H184) -> 0 | I185: =SUM(I182:I184) -> 0 | J185: =SUM(J182:J184) -> 0 | L185: 0
A186: =A174 -> 1 | B186: =B174 -> 5 | C186: Обед | D186: 1 блюдо
D187: гарнир
D188: 2 блюдо
D189: напиток
D190: хлеб бел.
D192: хлеб черн.
D195: итого | F195: =SUM(F186:F194) -> 0 | G195: =SUM(G186:G194) -> 0 | H195: =SUM(H186:H194) -> 0 | I195: =SUM(I186:I194) -> 0 | J195: =SUM(J186:J194) -> 0 | L195: 0
A196: =A174 -> 1 | B196: =B174 -> 5 | C196: Полдник | D196: булочное
D197: напиток
D200: итого | F200: =SUM(F196:F199) -> 0 | G200: =SUM(G196:G199) -> 0 | H200: =SUM(H196:H199) -> 0 | I200: =SUM(I196:I199) -> 0 | J200: =SUM(J196:J199) -> 0 | L200: 0
A201: =A174 -> 1 | B201: =B174 -> 5 | C201: Ужин | D201: гор.блюдо
D202: гарнир
D203: напиток
D204: хлеб
D207: итого | F207: =SUM(F201:F206) -> 0 | G207: =SUM(G201:G206) -> 0 | H207: =SUM(H201:H206) -> 0 | I207: =SUM(I201:I206) -> 0 | J207: =SUM(J201:J206) -> 0 | L207: 0
A208: =A174 -> 1 | B208: =B174 -> 5 | C208: Ужин 2 | D208: кисломол.
D209: булочное
D210: напиток
D211: фрукты
D214: итого | F214: =SUM(F208:F213) -> 0 | G214: =SUM(G208:G213) -> 0 | H214: =SUM(H208:H213) -> 0 | I214: =SUM(I208:I213) -> 0 | J214: =SUM(J208:J213) -> 0 | L214: 0
A215: =A174 -> 1 | B215: =B174 -> 5 | C215: Итого за день: | F215: =F181+F185+F195+F200+F207+F214 -> 560 | G215: =G181+G185+G195+G200+G207+G214 -> 14.7 | H215: =H181+H185+H195+H200+H207+H214 -> 9.8 | I215: =I181+I185+I195+I200+I207+I214 -> 83 | J215: =J181+J185+J195+J200+J207+J214 -> 472.5 | L215: =L181+L185+L195+L200+L207+L214 -> 76
A216: 1 | B216: 6 | C216: Завтрак | D216: гор.блюдо | E216: Суп крестьянский с крупой (крупа перловая) | F216: 200 | G216: 5.1 | H216: 5.8 | I216: 10.8 | J216: 120 | K216: 54-10с | L216: 19.03
D218: гор.напиток | E218: Кисель из брусники | F218: 200 | G218: 0.1 | H218: 0.1 | I218: 14.8 | J218: 60.7 | K218: 54-21хн | L218: 13.32
D219: хлеб | E219: Хлеб пшеничный | F219: 67 | G219: 6 | H219: 1.4 | I219: 60 | J219: 246 | K219: Пром. | L219: 10.5
D220: фрукты
D221: хлеб черн. | E221: Хлеб ржаной | F221: 60 | G221: 4 | H221: 0.7 | I221: 30 | J221: 131 | K221: Пром. | L221: 12
D223: итого | F223: =SUM(F216:F222) -> 527 | G223: =SUM(G216:G222) -> 15.2 | H223: =SUM(H216:H222) -> 8 | I223: =SUM(I216:I222) -> 115.6 | J223: =SUM(J216:J222) -> 557.7 | L223: =SUM(L216:L222) -> 54.85
A224: =A216 -> 1 | B224: =B216 -> 6 | C224: Завтрак 2 | D224: фрукты
D227: итого | F227: =SUM(F224:F226) -> 0 | G227: =SUM(G224:G226) -> 0 | H227: =SUM(H224:H226) -> 0 | I227: =SUM(I224:I226) -> 0 | J227: =SUM(J224:J226) -> 0 | L227: 0
A228: =A216 -> 1 | B228: =B216 -> 6 | C228: Обед | D228: закуска
D229: 1 блюдо
D230: 3 блюдо
D231: напиток
D232: хлеб бел.
D237: итого | F237: =SUM(F228:F236) -> 0 | G237: =SUM(G228:G236) -> 0 | H237: =SUM(H228:H236) -> 0 | I237: =SUM(I228:I236) -> 0 | J237: =SUM(J228:J236) -> 0 | L237: 0
A238: =A216 -> 1 | B238: =B216 -> 6 | C238: Полдник | D238: булочное
D239: напиток
D242: итого | F242: =SUM(F238:F241) -> 0 | G242: =SUM(G238:G241) -> 0 | H242: =SUM(H238:H241) -> 0 | I242: =SUM(I238:I241) -> 0 | J242: =SUM(J238:J241) -> 0 | L242: 0
A243: =A216 -> 1 | B243: =B216 -> 6 | C243: Ужин | D243: гор.блюдо
D244: гарнир
D245: напиток
D246: хлеб
D249: итого | F249: =SUM(F243:F248) -> 0 | G249: =SUM(G243:G248) -> 0 | H249: =SUM(H243:H248) -> 0 | I249: =SUM(I243:I248) -> 0 | J249: =SUM(J243:J248) -> 0 | L249: 0
A250: =A216 -> 1 | B250: =B216 -> 6 | C250: Ужин 2 | D250: кисломол.
D251: булочное
D252: напиток
D253: фрукты
D256: итого | F256: =SUM(F250:F255) -> 0 | G256: =SUM(G250:G255) -> 0 | H256: =SUM(H250:H255) -> 0 | I256: =SUM(I250:I255) -> 0 | J256: =SUM(J250:J255) -> 0 | L256: 0
A257: =A216 -> 1 | B257: =B216 -> 6 | C257: Итого за день: | F257: =F223+F227+F237+F242+F249+F256 -> 527 | G257: =G223+G227+G237+G242+G249+G256 -> 15.2 | H257: =H223+H227+H237+H242+H249+H256 -> 8 | I257: =I223+I227+I237+I242+I249+I256 -> 115.6 | J257: =J223+J227+J237+J242+J249+J256 -> 557.7 | L257: =L223+L227+L237+L242+L249+L256 -> 54.85
A258: 1 | B258: 7 | C258: Завтрак | D258: гор.блюдо
D260: гор.напиток
D261: хлеб
D262: фрукты
D265: итого | F265: =SUM(F258:F264) -> 0 | G265: =SUM(G258:G264) -> 0 | H265: =SUM(H258:H264) -> 0 | I265: =SUM(I258:I264) -> 0 | J265: =SUM(J258:J264) -> 0 | L265: 0
A266: =A258 -> 1 | B266: =B258 -> 7 | C266: Завтрак 2 | D266: фрукты
D269: итого | F269: =SUM(F266:F268) -> 0 | G269: =SUM(G266:G268) -> 0 | H269: =SUM(H266:H268) -> 0 | I269: =SUM(I266:I268) -> 0 | J269: =SUM(J266:J268) -> 0 | L269: 0
A270: =A258 -> 1 | B270: =B258 -> 7 | C270: Обед | D270: закуска
D271: 1 блюдо
D272: 2 блюдо
D273: гарнир
D274: напиток
D275: хлеб бел.
D276: хлеб черн.
D279: итого | F279: =SUM(F270:F278) -> 0 | G279: =SUM(G270:G278) -> 0 | H279: =SUM(H270:H278) -> 0 | I279: =SUM(I270:I278) -> 0 | J279: =SUM(J270:J278) -> 0 | L279: 0
A280: =A258 -> 1 | B280: =B258 -> 7 | C280: Полдник | D280: булочное
D281: напиток
D284: итого | F284: =SUM(F280:F283) -> 0 | G284: =SUM(G280:G283) -> 0 | H284: =SUM(H280:H283) -> 0 | I284: =SUM(I280:I283) -> 0 | J284: =SUM(J280:J283) -> 0 | L284: =SUM(L277:L283) -> 0
A285: =A258 -> 1 | B285: =B258 -> 7 | C285: Ужин | D285: гор.блюдо
D286: гарнир
... 215 more rows
